bitfinex/quotes_ETHUSD_20260120
["timestamp","ask_amount","ask_price","bid_price","bid_amount"]
[1768932330745,0.546,2999.5,2998.4,12.70840462]
[1768932331355,13.08932181,2999.5,2998.4,12.70840462]
[1768932332664,16.42328672,2999.5,2998.4,12.70840462]
[1768932333756,13.85225399,2999.8,2998.5,12.70840462]
[1768932333924,0.546,2999.7,2998.5,13.23657985]
[1768932334125,13.08932181,2999.7,2998.5,13.23657985]
[1768932334856,12.54332181,2999.5,2998.5,13.23657985]
[1768932335155,12.56454223,2999.4,2998.5,13.23657985]
[1768932335458,1.80245422,2999.3,2998.4,0.547]
[1768932335653,1.80245422,2999.3,2998.3,12.70840462]
[1768932336055,12.54332181,2999.7,2998.6,12.70840462]
[1768932336254,0.546,2999.6,2998.7,12.71040462]
[1768932336760,13.08932181,2999.6,2998.7,12.71040462]
[1768932337754,12.54332181,2999.5,2998.7,0.002]
[1768932339060,15.87727424,2999.5,2998.7,0.002]
[1768932339361,1.97570697,2999.4,2998.7,12.71040462]
[1768932339657,0.546,2999.6,2998.7,12.71040462]
[1768932341263,0.546,2999.6,2998.8,12.70840462]
[1768932342269,15.87688921,2999.8,2998.8,12.70840462]
[1768932342431,0.546,2999.7,2998.8,12.70840462]
[1768932342634,0.546,2999.7,2998.9,1.60451785]
[1768932342856,15.87688921,2999.8,2998.9,1.60451785]
[1768932343059,0.546,2999.7,2999.0,12.70840462]
[1768932343255,3.3335674,2999.8,2999.0,12.70840462]
[1768932343566,0.546,2999.7,2999.0,12.70840462]
[1768932344859,1.35820656,2999.7,2999.0,12.70840462]
[1768932345943,0.81220656,2999.7,2999.0,12.70840462]
[1768932346144,1.35820656,2999.7,2999.0,12.70840462]
[1768932346962,0.02122042,2999.6,2998.8,11.75898184]
[1768932347182,12.96218217,2999.6,2998.8,11.75898184]
[1768932347386,12.94096175,2999.6,2998.8,11.75898184]
[1768932348654,12.94096175,2999.5,2998.7,0.002]
[1768932348859,12.94096175,2999.3,2998.7,0.002]
[1768932349078,13.48696175,2999.3,2998.7,0.002]
[1768932351379,16.82113074,2999.3,2998.7,0.002]
[1768932351793,13.48696175,2999.3,2998.7,0.002]
[1768932354270,0.546,2999.2,2998.7,0.002]
[1768932355562,2.09078155,2999.2,2998.7,0.002]
[1768932357372,15.0317433,2999.2,2998.7,0.002]
[1768932358372,12.96218217,2999.1,2998.5,0.002]
[1768932358571,12.94096175,2999.1,2998.5,0.002]
[1768932358776,14.77756162,2999.0,2998.5,0.002]
[1768932359082,14.77756162,2999.0,2997.8,3.33576923]
[1768932359083,12.94096175,2998.9,2997.8,12.30598594]
[1768932359293,13.48696175,2998.8,2997.8,12.30598594]
[1768932359476,1.34869618,2998.7,2997.8,12.30598594]
[1768932360210,14.28965793,2998.7,2997.8,11.75898594]
[1768932360409,14.28965793,2998.7,2997.8,4.1e-06]
[1768932360712,12.94096175,2998.5,2997.8,4.1e-06]
[1768932361121,12.94096175,2998.3,2997.3,0.002]
[1768932361322,12.94096175,2997.9,2996.6,11.76098184]
[1768932361503,12.94096175,2997.7,2996.6,11.76098184]
[1768932361878,12.94096175,2997.7,2996.6,0.002]
[1768932362076,12.94096175,2998.3,2997.2,11.75898184]
[1768932362277,13.48696175,2998.2,2997.2,11.73804323]
[1768932362482,0.546,2998.1,2997.2,11.73804323]
[1768932362683,12.94096175,2998.2,2997.2,11.73804323]
[1768932363001,16.27557142,2998.9,2997.6,3.33600213]
[1768932363187,13.48696175,2998.8,2997.7,11.75898184]
[1768932363821,12.94096175,2998.6,2997.4,11.75898184]
[1768932365029,12.94096175,2998.6,2997.4,15.09519857]
[1768932365185,12.94096175,2998.6,2997.6,11.75898184]
[1768932365384,2.17357887,2998.5,2997.6,11.75898184]
[1768932365618,0.001,2999.1,2997.6,11.75898184]
[1768932365929,13.48796175,2999.1,2997.8,11.75898184]
[1768932366621,12.94096175,2998.9,2997.8,11.75898184]
[1768932366923,12.96218217,2998.8,2997.8,11.75898184]
[1768932367129,12.94096175,2998.8,2997.8,11.75898184]
[1768932367598,16.27564857,2998.8,2997.8,11.75898184]
[1768932367795,0.02122042,2998.7,2997.8,11.75898184]
[1768932367996,12.94096175,2998.7,2997.8,11.75898184]
[1768932368198,1.62756486,2998.6,2997.8,11.75898184]
[1768932368426,0.546,2998.5,2997.8,11.75898184]
[1768932368582,13.48696175,2998.5,2997.2,3.3364469]
[1768932368785,12.94096175,2998.4,2997.3,11.75898184]
[1768932368985,14.28965793,2998.3,2997.3,11.75898184]
[1768932369190,12.94096175,2997.9,2996.8,11.76098184]
[1768932369390,13.48696175,2997.8,2996.8,0.002]
[1768932369800,3.33555703,2998.0,2996.9,11.76098184]
[1768932369999,14.15406496,2997.9,2996.9,11.76098184]
[1768932370318,14.15406496,2997.9,2996.9,0.002]
[1768932371317,12.94096175,2997.7,2996.9,0.002]
[1768932371517,0.66710321,2997.9,2996.9,11.76098184]
[1768932371830,0.546,2997.9,2996.9,11.76098184]
[1768932372996,0.546,2997.9,2997.0,3.33667]
[1768932373311,0.546,2997.9,2997.1,11.75898184]
[1768932373928,13.48696175,2997.9,2996.9,0.002]
[1768932374087,12.94096175,2997.8,2996.9,0.002]
[1768932374293,7.21733838,2997.9,2996.9,0.002]
[1768932374294,14.95679176,2997.7,2996.9,0.002]
[1768932374924,14.95679176,2997.7,2996.6,0.002]
[1768932375094,12.78565108,2997.5,2996.6,0.002]
[1768932375296,12.78565108,2997.3,2996.3,0.002]
[1768932375599,12.78565108,2997.1,2996.3,0.002]
[1768932375793,1.9822911,2997.2,2996.1,12.32556907]
[1768932376030,1.9822911,2997.2,2995.6,0.547]
[1768932376031,12.78565108,2998.2,2996.3,12.32556907]
[1768932376216,0.546,2998.1,2996.5,12.32556907]
[1768932376395,1.33316511,2998.0,2996.7,12.32556907]
[1768932376993,3.33614412,2998.4,2996.7,12.32556907]
[1768932377324,3.88129218,2998.3,2996.9,12.32556907]
[1768932378626,0.546,2998.2,2996.9,12.32556907]
[1768932378834,0.001,2998.4,2996.9,12.32556907]
[1768932379125,0.001,2998.4,2997.3,6.67267206]
[1768932379295,0.001,2998.4,2997.4,12.99283628]
[1768932380296,12.78665108,2998.4,2997.0,12.32556907]
[1768932380512,12.78665108,2998.4,2997.0,15.66222424]
[1768932380712,12.78665108,2998.4,2997.1,3.33655614]
[1768932380910,12.78665108,2998.4,2997.0,12.32556907]
[1768932381112,12.8068715,2998.3,2997.0,12.32556907]
[1768932381333,12.8068715,2998.3,2997.0,17.28323906]
[1768932381334,1.28078715,2998.2,2997.0,17.28323906]
[1768932382114,1.28078715,2998.2,2997.0,13.94659995]
[1768932382430,14.06643823,2998.2,2997.0,13.94659995]
[1768932382726,14.06643823,2998.2,2997.0,17.28325884]
[1768932382932,14.06643823,2998.2,2997.0,13.94659995]
[1768932383234,2.07369731,2998.1,2997.0,17.28325517]
[1768932383432,0.546,2998.0,2997.0,13.94659995]
[1768932383630,0.546,2998.0,2995.6,3.33817108]
[1768932383631,13.33165108,2998.0,2996.7,12.32556907]
[1768932385218,12.78565108,2997.8,2996.7,12.32556907]
[1768932385533,12.78565108,2997.6,2996.4,12.32556907]
[1768932385720,1.94574328,2997.5,2996.5,12.32556907]
[1768932385917,0.547,2997.5,2996.5,12.32556907]
[1768932386305,12.78665108,2998.2,2996.7,12.32556907]
[1768932386503,0.547,2998.1,2996.7,12.32556907]
[1768932387731,3.88247458,2998.1,2996.9,12.32556907]
[1768932387935,0.38833693,2998.0,2996.9,12.32556907]
[1768932389840,0.547,2997.9,2997.0,12.32556907]
[1768932390840,0.02122042,2997.8,2997.0,12.32556907]
[1768932391018,3.33551281,2998.1,2997.0,12.32556907]
[1768932391221,0.547,2997.7,2997.0,12.32556907]
[1768932391410,0.547,2997.7,2997.1,1.56622787]
[1768932391742,0.547,2997.7,2997.0,12.32556907]
[1768932392048,0.001,2998.2,2997.1,12.32556907]
[1768932392248,0.547,2998.0,2997.1,12.32556907]
[1768932392745,0.547,2998.1,2997.1,12.32556907]
[1768932392924,0.547,2998.1,2997.3,12.32556907]
[1768932395113,0.547,2998.1,2997.4,12.32556907]
[1768932395324,0.001,2998.2,2997.4,12.32556907]
[1768932395652,0.548,2998.2,2997.4,12.32556907]
[1768932398237,0.548,2998.2,2997.4,15.66179379]
[1768932398438,0.548,2998.2,2997.4,16.22805964]
[1768932398751,0.548,2998.2,2997.4,12.89183492]
[1768932399222,0.001,2998.2,2997.4,12.89183492]
[1768932399547,0.548,2998.2,2997.4,12.89183492]
[1768932400553,0.001,2998.2,2997.4,16.22802158]
[1768932400748,0.548,2998.2,2997.5,12.32556907]
[1768932401252,0.93641272,2998.2,2997.5,12.32556907]
[1768932401426,0.001,2998.2,2997.5,12.32556907]
[1768932401627,12.78665108,2999.1,2997.7,12.32556907]
[1768932401840,3.88233683,2999.1,2997.7,12.32556907]
[1768932402152,0.548,2999.1,2997.7,12.32556907]
[1768932402359,0.001,2999.1,2997.9,12.32556907]
[1768932402516,0.001,2999.1,2998.1,12.32556907]
[1768932402913,0.001,2999.1,2998.0,0.548]
[1768932402914,0.001,2999.1,2998.3,12.32556907]
[1768932403163,0.001,2999.1,2998.5,12.32556907]
[1768932404726,12.53679451,2999.0,2998.1,12.21933814]
[1768932404931,1.25377945,2998.9,2997.9,15.63845497]
[1768932405128,1.25377945,2998.9,2997.9,12.30284384]
[1768932405548,1.25377945,2998.9,2997.9,15.63850214]
[1768932405736,12.06291404,2998.8,2997.8,1.28735691]
[1768932406118,12.06291404,2998.8,2997.9,3.33564526]
[1768932406326,12.06291404,2998.8,2998.0,0.61252741]
[1768932407449,12.06291404,2998.8,2998.1,12.30284384]
[1768932407450,0.546,2998.8,2998.1,12.30284384]
[1768932407619,0.001,2999.1,2998.1,12.85084384]
[1768932407815,0.001,2999.1,2998.3,12.30284384]
[1768932408319,12.06391404,2999.1,2998.1,0.548]
[1768932408519,12.06291404,2999.0,2998.1,0.548]
[1768932408720,0.001,2999.1,2998.1,12.85084384]
[1768932408930,0.001,2999.1,2998.3,12.30284384]
[1768932409532,0.001,2999.1,2998.2,1.67989149]
[1768932409956,12.06391404,2999.1,2998.1,0.548]
[1768932410125,12.06391404,2999.1,2998.0,12.30284384]
[1768932410126,12.06291404,2998.9,2998.0,12.30284384]
[1768932410452,12.06291404,2998.8,2997.8,12.85084384]
[1768932410624,12.06291404,2998.8,2997.8,16.18660762]
[1768932410946,12.06391404,2999.1,2997.9,12.30284384]
[1768932411124,1.59441932,2999.0,2998.0,13.58792822]
[1768932411323,1.59441932,2999.0,2998.0,16.92343628]
[1768932411630,1.59441932,2999.0,2998.0,16.92348446]
[1768932412345,0.546,2998.9,2998.0,16.92348446]
[1768932413153,12.06291404,2998.7,2997.1,12.30284384]
[1768932413352,12.06291404,2998.5,2997.1,12.30284384]
[1768932413555,12.06291404,2998.3,2997.2,12.30284384]
[1768932413721,12.06291404,2998.3,2997.3,1.56393991]
[1768932414333,12.06291404,2998.3,2997.2,12.30284384]
[1768932415260,12.06291404,2998.1,2996.9,16.18659967]
[1768932415445,12.06291404,2998.1,2996.9,12.84984384]
[1768932416162,12.06291404,2997.9,2996.9,12.84984384]
[1768932417145,12.06291404,2997.9,2996.6,15.63995373]
[1768932417460,13.86980544,2997.8,2996.8,3.33683015]
[1768932417936,13.86980544,2997.8,2996.7,15.97354761]
[1768932418133,13.86980544,2997.8,2996.7,12.63655483]
[1768932418338,12.06291404,2997.7,2996.7,12.63655483]
[1768932418533,12.06291404,2997.7,2996.6,0.548]
[1768932418957,12.06291404,2997.7,2996.4,12.30284384]
[1768932419254,12.06291404,2997.5,2996.3,0.548]
[1768932419459,12.06291404,2997.3,2996.3,0.548]
[1768932419631,12.06291404,2997.3,2995.5,12.30284384]
[1768932419832,12.06291404,2997.1,2995.8,12.30284384]
[1768932420257,12.06291404,2997.1,2995.6,0.548]
[1768932420460,12.06291404,2997.1,2995.7,12.30284384]
[1768932420759,13.81620544,2997.0,2995.9,12.30284384]
[1768932420964,13.81620544,2997.0,2995.9,12.30085204]
[1768932421483,13.26920544,2997.0,2996.0,12.30284384]
[1768932421634,1.53989162,2997.4,2996.2,12.30284384]
[1768932421972,0.547,2997.4,2996.2,12.30284384]
[1768932423147,1.2608914,2997.8,2996.2,12.30284384]
[1768932423439,0.547,2997.9,2996.4,10.01201439]
[1768932423636,12.06291404,2998.5,2996.8,12.30284384]
[1768932423842,12.06291404,2998.5,2996.7,7.03722221]
[1768932423843,1.2063914,2998.4,2997.0,12.30284384]
[1768932424048,0.547,2998.3,2997.0,12.30284384]
[1768932425497,0.001,2998.6,2997.2,7.03722221]
[1768932425774,0.001,2998.6,2997.3,14.55553366]
[1768932427780,0.001,2998.6,2997.5,12.30284384]
[1768932428271,12.06391404,2998.6,2997.4,12.85084384]
[1768932428475,13.65847236,2998.6,2997.5,13.06430419]
[1768932429047,12.06291404,2998.4,2996.9,3.33676847]
[1768932429241,12.06291404,2998.2,2997.0,12.85084384]
[1768932429472,12.06291404,2998.2,2997.0,12.30284384]
[1768932429679,12.06291404,2998.2,2997.0,15.63943641]
[1768932429990,1.59452393,2998.1,2997.1,1.56394364]
[1768932430195,1.59452393,2998.1,2997.1,13.86678748]
[1768932430946,0.001,2998.6,2997.3,12.30284384]
[1768932431154,0.547,2998.5,2997.3,12.30284384]
[1768932431481,12.06291404,2998.3,2997.1,1.56394364]
[1768932431857,12.06291404,2998.2,2997.1,4.90048251]
[1768932432552,12.06291404,2998.5,2997.2,12.30284384]
[1768932432745,12.06291404,2998.5,2997.1,4.90048251]
[1768932432746,0.547,2998.1,2997.4,12.30284384]
[1768932433704,0.547,2998.1,2997.3,0.90220653]
[1768932434588,0.547,2998.2,2997.3,13.20505037]
[1768932434788,0.547,2998.2,2997.4,12.30284384]
[1768932434968,0.547,2998.2,2997.2,16.12354339]
[1768932435170,0.547,2998.2,2997.3,12.78713045]
[1768932435367,0.547,2998.2,2997.3,18.06947126]
[1768932435564,0.547,2998.2,2997.3,14.73313887]
[1768932435776,12.49546772,2998.2,2997.3,1.94600842]
[1768932435988,0.001,2998.4,2997.4,12.78713045]
[1768932436169,0.547,2998.3,2997.5,12.78713045]
[1768932437196,0.001,2998.4,2997.5,12.78713045]
[1768932437368,12.49546772,2998.3,2997.3,0.548]
[1768932437562,14.02391487,2998.3,2997.3,13.33513045]
[1768932437897,14.02391487,2998.3,2997.3,16.67143538]
[1768932438274,14.02391487,2998.3,2997.4,12.78713045]
[1768932439004,0.001,2998.4,2997.4,12.78713045]
[1768932439188,0.001,2998.6,2997.4,12.78713045]
[1768932439366,0.001,3000.6,3000.2,0.1666643]
[1768932439566,0.547,3001.1,3000.8,0.15204852]
[1768932439803,11.94846772,3001.2,3000.8,0.03120495]
[1768932439972,13.80970687,3001.1,3000.2,0.1666643]
[1768932440315,3.33244468,3000.8,3000.2,0.08801724]
[1768932440615,0.547,3000.7,2999.3,12.78713045]
[1768932440763,1.91815775,3000.6,2999.4,0.548]
[1768932440963,12.49546772,3000.7,2999.6,3.33370491]
[1768932441303,3.33225312,3001.0,2999.8,16.12068562]
[1768932441507,0.546,3000.8,2999.8,12.78713045]
[1768932442107,1.52807208,3000.9,2999.8,12.78713045]
[1768932442408,0.546,3000.8,2999.8,12.78713045]
[1768932442568,3.87844796,3000.8,2999.8,12.78713045]
[1768932443067,0.546,3000.8,2999.8,12.78713045]
[1768932443271,0.54064498,3000.7,2999.8,12.78713045]
[1768932443772,0.54064498,3000.7,2999.4,13.33513045]
[1768932443982,11.94846772,3000.6,2999.3,0.547]
[1768932444393,6.66555574,3000.5,2999.3,0.547]
[1768932444591,6.66555574,3000.5,2999.3,13.33413045]
[1768932444592,1.86140235,3000.4,2999.3,13.33413045]
[1768932444793,0.546,3000.3,2999.3,16.6682186]
[1768932445220,0.546,3000.3,2999.3,16.66821048]
[1768932445582,1.86140235,3000.4,2999.4,12.78713045]
[1768932445908,4.41924613,3000.7,2999.6,12.78713045]
[1768932446110,0.001,3000.6,2999.6,12.78713045]
[1768932446879,11.94946772,3000.6,2999.5,2.00223218]
[1768932447119,11.94946772,3000.6,2999.5,0.002]
[1768932448487,3.33277787,3000.5,2999.5,0.002]
[1768932448792,18.61402346,3000.5,2999.5,0.002]
[1768932448997,11.94846772,3000.4,2999.5,0.002]
[1768932449194,0.546,3000.3,2999.5,0.002]
[1768932449415,2.46200235,3000.3,2999.5,0.002]
[1768932449596,0.001,3000.6,2999.5,12.78913045]
[1768932449921,0.547,3000.6,2999.5,12.78913045]
[1768932450131,3.8796717,3000.6,2999.5,12.78913045]
[1768932450419,11.94846772,3000.3,2999.5,0.002]
[1768932450595,3.33288894,3000.4,2999.5,0.002]
[1768932450596,13.47660339,3000.2,2999.5,0.002]
[1768932451116,1.52813567,3000.2,2999.5,0.002]
[1768932451290,0.546,3000.3,2999.5,12.78913045]
[1768932451693,0.546,3000.3,2999.5,0.002]
[1768932452419,0.546,3000.5,2999.5,12.78913045]
[1768932452609,0.546,3000.5,2999.6,14.39943531]
[1768932453013,0.001,3000.6,2999.8,12.78713045]
[1768932453422,0.001,3000.6,2999.6,1.61230486]
[1768932453593,0.001,3000.6,2999.8,0.547]
[1768932453793,3.33368734,3000.6,2999.8,0.547]
[1768932453993,0.001,3000.6,2999.8,0.547]
[1768932454193,3.33166749,3001.5,3000.0,12.78713045]
[1768932454423,8.7373485,3001.5,3000.2,12.78713045]
[1768932454727,5.40568101,3001.5,3000.3,12.78713045]
[1768932455021,8.7373485,3001.5,3000.3,12.78713045]
[1768932455593,5.40568101,3001.5,3000.3,12.78713045]
[1768932455794,8.7373485,3001.5,3000.4,1.61202383]
[1768932456291,11.94846772,3001.4,3000.4,1.61202383]
[1768932456523,11.94846772,3001.2,3000.0,13.33413045]
[1768932456732,11.94846772,3001.2,3000.1,12.78713045]
[1768932457032,0.546,3001.1,3000.1,12.78713045]
[1768932458398,0.001,3001.2,3000.1,12.78713045]
[1768932458902,0.001,3001.2,3000.3,12.78713045]
[1768932459117,0.001,3001.2,3000.4,1.30207008]
[1768932459706,3.33307972,3001.2,3000.4,1.30207008]
[1768932459910,3.33307972,3001.2,3000.3,12.78713045]
[1768932461150,6.66515944,3001.2,3000.3,12.78713045]
[1768932461314,6.66515944,3001.2,3000.1,0.2335703]
[1768932461860,6.66515944,3001.2,2999.6,12.78713045]
[1768932461861,11.94846772,3001.1,2999.6,12.78713045]
[1768932462013,11.94846772,3001.1,2999.8,12.78713045]
[1768932462212,1.86136272,3001.0,2999.9,1.61207947]
[1768932462635,15.28080135,3000.9,2999.8,12.78713045]
[1768932462812,0.546,3000.8,2999.8,12.78713045]
[1768932464815,3.87854783,3000.8,2999.8,12.78713045]
[1768932465470,0.546,3000.8,2999.8,16.12067537]
[1768932465671,7.21091044,3000.8,2999.9,1.61206754]
[1768932466593,0.02122042,3000.7,2999.9,1.61206754]
[1768932466821,0.02122042,3000.7,2999.8,12.78713045]
[1768932466950,18.97955867,3000.6,2999.6,0.2335703]
[1768932467352,12.31422509,3000.5,2999.5,12.78450908]
[1768932467547,0.546,3000.4,2999.5,14.06315999]
[1768932468804,0.546,3000.5,2999.7,12.23550908]
[1768932469289,3.87870412,3000.6,2999.7,12.23550908]
[1768932469453,12.31422509,3000.5,2999.5,1.82765091]
[1768932469652,0.5498978,3000.4,3000.1,0.002]
[1768932469857,0.5498978,3000.4,2999.5,1.82765091]
[1768932470082,12.31422509,3000.5,2999.9,0.002]
[1768932470453,0.546,3000.4,2999.9,0.002]
[1768932470858,3.87892216,3000.4,2999.9,0.002]
[1768932471059,16.19314725,3000.4,2999.9,0.002]
[1768932471786,12.31422509,3000.3,2999.5,0.002]
[1768932471954,13.93353982,3000.3,2999.5,0.002]
[1768932473159,3.81,3001.1,2999.5,12.23750908]
[1768932473468,3.45935673,3001.8,2999.6,12.46907938]
[1768932473469,3.33310892,3001.2,2999.6,12.46907938]
[1768932473783,0.546,3001.1,2999.8,12.46907938]
[1768932474606,0.001,3001.2,2999.8,12.46907938]
[1768932474924,0.001,3001.2,3000.1,12.23550908]
[1768932475209,0.001,3001.2,3000.3,12.23550908]
[1768932477220,3.8790506,3001.2,3000.3,12.23550908]
[1768932477427,0.547,3001.2,3000.3,12.23550908]
[1768932478410,3.87900542,3001.2,3000.3,12.23550908]
[1768932478617,3.87900542,3001.2,3000.4,1.16454223]
[1768932478802,0.547,3001.2,3000.4,1.16454223]
[1768932479005,0.547,3001.2,3000.4,13.40005131]
[1768932480414,0.52686892,3001.2,3000.4,13.40005131]
[1768932480714,0.546,3001.6,3000.5,12.23550908]
[1768932480937,12.86022509,3001.6,3000.6,1.30160794]
[1768932481092,12.31422509,3001.4,3000.3,12.78250908]
[1768932481486,12.31422509,3001.4,3000.4,12.23550908]
[1768932482016,15.64601674,3001.4,3000.4,12.23550908]
[1768932482185,15.64601674,3001.4,3000.3,0.547]
[1768932482186,12.31422509,3001.3,3000.3,0.547]
[1768932482384,12.86022509,3001.2,3000.3,12.78250908]
[1768932483003,0.001,3000.9,3000.3,12.78250908]
[1768932484096,0.001,3000.9,3000.3,0.547]
[1768932484519,12.31522509,3000.9,2999.9,0.7805703]
[1768932484705,12.31522509,3000.9,2999.9,2.41552803]
[1768932484904,0.001,3000.9,3000.1,12.23550908]
[1768932485505,0.001,3000.9,3000.5,12.23550908]
[1768932485710,0.546,3001.5,3000.5,12.23550908]
[1768932487023,16.19192247,3001.5,3000.5,12.23550908]
[1768932487325,12.31422509,3001.4,3000.5,12.23550908]
[1768932487484,12.31422509,3001.4,3000.6,1.22355091]
[1768932488313,12.31422509,3001.4,3000.6,13.45905999]
[1768932488691,0.546,3001.5,3000.7,12.23550908]
[1768932488885,12.86022509,3001.5,3000.6,1.22355091]
[1768932489117,16.19192593,3001.5,3000.6,13.45905999]
[1768932489323,12.31422509,3001.4,3000.3,12.78250908]
[1768932489717,12.31422509,3001.2,3000.3,12.78250908]
[1768932490286,12.31422509,3001.2,3000.0,12.23550908]
[1768932490287,12.31422509,3001.0,3000.0,12.23550908]
[1768932490623,12.31422509,3001.0,3000.1,0.547]
[1768932490822,12.31422509,3001.0,3000.1,16.11570586]
[1768932491021,12.31422509,3001.0,3000.2,1.61157059]
[1768932493692,12.31422509,3000.9,3000.1,12.78250908]
[1768932493999,12.31422509,3000.9,3000.1,12.23550908]
[1768932494431,15.64656441,3000.9,3000.1,12.23550908]
[1768932494800,12.31422509,3000.8,2999.8,12.23550908]
[1768932495022,11.88386127,3001.4,3000.4,0.002]
[1768932495190,12.42986127,3001.3,3000.4,11.74623899]
[1768932495394,13.46003541,3001.2,3000.4,11.74623899]
[1768932495595,11.88386127,3001.0,3000.0,0.002]
[1768932495919,1.57617414,3001.2,3000.0,0.002]
[1768932495920,11.88386127,3000.8,3000.0,0.002]
[1768932499844,11.88386127,3000.8,3000.0,11.74823899]
[1768932501137,11.88386127,3000.7,3000.0,0.002]
[1768932501340,13.40549202,3000.6,3000.0,0.002]
[1768932502045,13.40549202,3000.6,2999.5,0.002]
[1768932502046,11.88386127,3000.4,2999.5,0.002]
[1768932502871,11.88386127,3000.4,2999.3,0.002]
[1768932503214,11.88386127,3000.2,2999.3,0.002]
[1768932503414,11.88386127,3000.0,2999.3,0.002]
[1768932505142,3.33344444,2999.9,2999.3,0.002]
[1768932505448,15.21730571,2999.9,2999.3,0.002]
[1768932505614,11.88386127,2999.8,2999.3,0.002]
[1768932505818,11.88386127,2999.6,2998.8,0.002]
[1768932506640,0.546,2999.7,2997.2,0.128]
[1768932506860,11.88386127,2999.2,2998.0,11.74623899]
[1768932507159,11.88386127,2999.0,2998.1,11.74823899]
[1768932507320,0.546,2998.9,2998.1,11.74823899]
[1768932507515,11.88386127,2999.4,2998.1,12.92306289]
[1768932507719,12.42986127,2999.3,2998.1,12.92306289]
[1768932508519,12.42986127,2999.3,2998.1,11.74823899]
[1768932509121,6.6684449,2999.2,2998.1,11.74823899]
[1768932509318,11.88386127,2999.1,2998.1,11.74823899]
[1768932510390,11.88386127,2999.1,2997.7,0.547]
[1768932510568,11.88386127,2998.4,2997.4,0.1739408]
[1768932510726,12.42986127,2998.3,2997.2,11.74623899]
[1768932510920,0.546,2998.2,2997.2,11.74623899]
[1768932511220,3.33544578,2998.1,2997.2,11.74623899]
[1768932511420,15.76523784,2998.2,2997.2,11.74623899]
[1768932511632,13.79390976,2998.1,2996.7,11.74623899]
[1768932511952,13.79390976,2998.1,2996.9,11.74623899]
[1768932512542,13.79390976,2998.1,2996.4,0.547]
[1768932512543,0.546,2998.0,2997.1,11.74623899]
[1768932513562,3.88156157,2998.0,2997.1,11.74623899]
[1768932513763,0.93415616,2998.0,2997.1,11.74623899]
[1768932514068,0.38815616,2998.0,2997.1,11.74623899]
[1768932514252,0.546,2997.9,2997.1,11.74623899]
[1768932514568,11.88386127,2998.2,2997.1,11.74623899]
[1768932514769,0.546,2998.1,2997.3,11.74623899]
[1768932515070,0.546,2998.1,2997.4,0.02990358]
[1768932515239,0.546,2998.1,2997.4,11.74623899]
[1768932515562,0.546,2998.1,2997.5,12.92086289]
[1768932515787,11.88386127,2998.0,2996.9,0.547]
[1768932515937,11.88386127,2998.0,2996.0,0.17392536]
[1768932515938,11.88386127,2997.6,2996.4,11.74623899]
[1768932516136,13.72039847,2997.5,2996.4,12.92086289]
[1768932516366,0.547,2997.4,2996.5,11.74623899]
[1768932517063,12.43086127,2997.4,2996.4,1.1746239]
[1768932517264,15.22030862,2997.2,2996.2,11.74623899]
[1768932517472,15.22030862,2997.2,2995.9,11.74623899]
[1768932517473,11.88386127,2997.1,2995.9,11.74623899]
[1768932517889,1.24308613,2997.3,2996.0,11.74623899]
[1768932518051,3.33626126,2997.4,2996.1,11.74623899]
[1768932518252,0.547,2997.2,2996.1,11.74623899]
[1768932518568,12.43086127,2997.2,2995.8,11.74623899]
[1768932518883,0.547,2997.1,2996.0,11.74623899]
[1768932519187,0.547,2997.1,2996.0,15.083967]
[1768932519363,11.88386127,2997.5,2996.1,11.74623899]
[1768932519552,1.73538613,2997.4,2996.3,11.74623899]
[1768932519889,0.547,2997.3,2996.3,11.74623899]
[1768932520093,0.001,2997.9,2996.3,11.74623899]
[1768932520397,0.547,2997.8,2996.3,11.74623899]
[1768932520690,11.88486127,2997.9,2996.5,11.74623899]
[1768932520894,0.547,2997.8,2996.5,11.74623899]
[1768932521498,0.547,2997.8,2996.6,11.74623899]
[1768932522068,11.88386127,2997.7,2996.6,11.74623899]
[1768932522263,11.88386127,2997.7,2996.4,13.01663444]
[1768932522462,7.21859574,2997.8,2996.1,11.74623899]
[1768932522463,11.88386127,2997.5,2996.1,11.74623899]
[1768932522655,11.88386127,2997.5,2996.2,11.74623899]
[1768932522855,11.88386127,2997.5,2996.4,11.74623899]
[1768932523060,0.547,2997.4,2996.4,11.74623899]
[1768932523866,0.547,2997.3,2996.4,11.74623899]
[1768932524199,0.547,2997.3,2996.6,11.81506111]
[1768932524367,3.33671227,2997.9,2996.6,11.81506111]
[1768932524690,0.547,2997.8,2996.6,11.81506111]
[1768932525491,3.33589084,2997.7,2996.6,11.81506111]
[1768932526088,0.547,2997.8,2996.7,11.91258897]
[1768932526280,0.547,2997.8,2996.6,3.33705471]
[1768932526281,0.547,2997.7,2996.9,11.91258897]
[1768932526476,12.07414941,2997.9,2996.9,11.91258897]
[1768932526994,0.001,2997.9,2996.9,11.91258897]
[1768932527169,0.547,2997.8,2996.9,11.91258897]
[1768932527368,0.547,2997.8,2997.1,11.91258897]
[1768932527701,0.547,2997.7,2997.1,11.91258897]
[1768932528485,0.547,2997.8,2997.1,11.91258897]
[1768932528687,0.001,2997.9,2997.1,11.91258897]
[1768932528886,0.547,2997.8,2997.1,11.91258897]
[1768932529197,0.001,2997.9,2997.2,13.09170135]
[1768932530676,0.001,2997.9,2997.3,11.91258897]
[1768932530993,0.547,2998.6,2997.4,11.91258897]
[1768932531174,12.07314941,2999.5,2997.5,11.91258897]
[1768932531383,12.62014941,2999.4,2997.5,11.91258897]
[1768932531563,12.07314941,2999.2,2997.7,11.91258897]
[1768932531902,15.40748304,2999.1,2997.8,11.91258897]
[1768932532101,12.07314941,2999.0,2997.8,11.91258897]
[1768932532298,0.547,2998.9,2997.8,11.91258897]
[1768932532670,12.07314941,2999.0,2997.8,11.91258897]
[1768932532869,12.07314941,2999.0,2997.7,6.67175085]
[1768932532870,0.547,2998.9,2998.0,11.91258897]
[1768932533169,13.61389771,2999.0,2998.0,11.91258897]
[1768932533367,12.62014941,2998.8,2997.9,1.22009127]
[1768932534104,0.547,2998.8,2997.9,13.13268024]
[1768932534710,3.88166872,2998.8,2997.9,13.13268024]
[1768932534883,0.547,2998.8,2997.9,13.13268024]
[1768932535082,3.88167384,2998.8,2998.0,1.2460589]
[1768932535814,3.88167384,2998.8,2998.0,13.15864787]
[1768932535815,0.547,2998.8,2998.0,13.15864787]